fUSD/lending_fUSD_20241223
["ID","MTS","AMOUNT","RATE_DAILY","PERIOD"]
[346462372,1734985845991,-2358.02,0.00013698,2]
[346462373,1734985846005,-1767.73,0.00013698,2]
[346462374,1734985846015,-1610.47,0.00013698,2]
[346462375,1734985846026,-1406.6,0.00013698,2]
[346462376,1734985846036,-1381.12,0.00013698,2]
[346462377,1734985846045,-500.0,0.00013698,2]
[346462378,1734985846055,-500.0,0.00013698,2]
[346462379,1734985846067,-2739.52,0.00013698,2]
[346462380,1734985846076,-500.0,0.00013698,2]
[346462381,1734985846087,-500.0,0.00013698,2]
[346462382,1734985846096,-437.74403494,0.00013698,2]
[346462383,1734985846106,-500.0,0.00013698,2]
[346462384,1734985846116,-500.0,0.00013698,2]
[346462385,1734985846126,-1819.83,0.00013698,2]
[346462386,1734985846135,-500.0,0.00013698,2]
[346462387,1734985846145,-500.0,0.00013698,2]
[346462388,1734985846156,-670.54,0.00013698,2]
[346462389,1734985846166,-500.0,0.00013698,2]
[346462390,1734985846176,-500.0,0.00013698,2]
[346462391,1734985846186,-500.0,0.00013698,2]
[346462392,1734985846197,-1116.26,0.00013698,2]
[346462393,1734985846207,-500.0,0.00013698,2]
[346462394,1734985846217,-500.0,0.00013698,2]
[346462395,1734985846227,-500.0,0.00013698,2]
[346462396,1734985846236,-500.0,0.00013698,2]
[346462397,1734985846246,-500.0,0.00013698,2]
[346462398,1734985846256,-1104.4,0.00013698,2]
[346462399,1734985846266,-500.0,0.00013698,2]
[346462400,1734985846276,-500.0,0.00013698,2]
[346462401,1734985846286,-1127.54,0.00013698,2]
[346462402,1734985846296,-500.0,0.00013698,2]
[346462403,1734985846306,-500.0,0.00013698,2]
[346462404,1734985846315,-500.0,0.00013698,2]
[346462405,1734985846326,-713.56,0.00013698,2]
[346462406,1734985846336,-718.79,0.00013698,2]
[346462407,1734985846346,-500.0,0.00013698,2]
[346462408,1734985846356,-1324.85,0.00013698,2]
[346462409,1734985846366,-11616.38,0.00013698,2]
[346462410,1734985846375,-500.0,0.00013698,2]
[346462411,1734985846385,-500.0,0.00013698,2]
[346462412,1734985846395,-546.66,0.00013698,2]
[346462413,1734985846408,-889.67,0.00013698,2]
[346462414,1734985846418,-552.31,0.00013698,2]
[346462415,1734985846428,-2585.74,0.00013698,2]
[346462416,1734985846438,-305.04914211,0.00013698,2]
[346462417,1734985846449,-500.0,0.00013698,2]
[346462418,1734985846459,-1564.45,0.00013698,2]
[346462419,1734985846469,-500.0,0.00013698,2]
[346462421,1734985846479,-500.0,0.00013698,2]
[346462423,1734985846489,-2132.91,0.00013698,2]
[346462425,1734985846499,-1910.4,0.00013698,2]
[346462427,1734985846508,-500.0,0.00013698,2]
[346462428,1734985846518,-500.0,0.00013698,2]
[346462429,1734985846528,-500.0,0.00013698,2]
[346462431,1734985846537,-500.0,0.00013698,2]
[346462432,1734985846547,-369.81466169,0.00013698,2]
[346462433,1734985846556,-500.0,0.00013698,2]
[346462434,1734985846566,-500.0,0.00013698,2]
[346462435,1734985846575,-676.74,0.00013698,2]
[346462436,1734985846585,-1052.83,0.00013698,2]
[346462437,1734985846595,-3961.8,0.00013698,2]
[346462438,1734985846604,-1540.54,0.00013698,2]
[346462439,1734985846614,-500.0,0.00013698,2]
[346462440,1734985846623,-500.0,0.00013698,2]
[346462441,1734985846633,-500.0,0.00013698,2]
[346462442,1734985846643,-906.99,0.00013698,2]
[346462443,1734985846655,-500.0,0.00013698,2]
[346462444,1734985846665,-1220.26,0.00013698,2]
[346462445,1734985846674,-501.28770427,0.00013698,2]
[346462446,1734985846684,-757.77,0.00013698,2]
[346462447,1734985846694,-608.2,0.00013698,2]
[346462448,1734985846703,-500.0,0.00013698,2]
[346462449,1734985846713,-730.93,0.00013698,2]
[346462450,1734985846724,-642.48,0.00013698,2]
[346462451,1734985846735,-500.0,0.00013698,2]
[346462452,1734985846746,-500.0,0.00013698,2]
[346462453,1734985846756,-1880.32,0.00013698,2]
[346462454,1734985846766,-500.0,0.00013698,2]
[346462455,1734985846777,-500.0,0.00013698,2]
[346462456,1734985846786,-500.0,0.00013698,2]
[346462457,1734985846796,-502.85400895,0.00013698,2]
[346462458,1734985846806,-500.0,0.00013698,2]
[346462459,1734985846816,-308.28275337,0.00013698,2]
[346462460,1734985846825,-500.0,0.00013698,2]
[346462461,1734985846835,-500.0,0.00013698,2]
[346462462,1734985846844,-593.05,0.00013698,2]
[346462463,1734985846854,-1323.67,0.00013698,2]
[346462464,1734985846865,-731.37,0.00013698,2]
[346462465,1734985846874,-1128.51,0.00013698,2]
[346462466,1734985846884,-500.0,0.00013698,2]
[346462467,1734985846894,-1229.23,0.00013698,2]
[346462468,1734985846907,-500.0,0.00013698,2]
[346462469,1734985846918,-500.0,0.00013698,2]
[346462470,1734985846929,-1556.25,0.00013698,2]
[346462471,1734985846939,-1821.81,0.00013698,2]
[346462472,1734985846949,-500.0,0.00013698,2]
[346462473,1734985846959,-500.0,0.00013698,2]
[346462474,1734985846970,-500.0,0.00013698,2]
[346462475,1734985846980,-500.0,0.00013698,2]
[346462476,1734985846991,-500.0,0.00013698,2]
[346462477,1734985847001,-2511.25,0.00013698,2]
[346462478,1734985847011,-500.0,0.00013698,2]
[346462479,1734985847022,-500.0,0.00013698,2]
[346462480,1734985847031,-500.0,0.00013698,2]
[346462481,1734985847041,-500.0,0.00013698,2]
[346462482,1734985847051,-500.0,0.00013698,2]
[346462483,1734985847061,-500.0,0.00013698,2]
[346462484,1734985847070,-500.0,0.00013698,2]
[346462485,1734985847081,-500.0,0.00013698,2]
[346462486,1734985847091,-1286.37,0.00013698,2]
[346462487,1734985847101,-4562.33,0.00013698,2]
[346462488,1734985847111,-1062.83,0.00013698,2]
[346462489,1734985847121,-1153.14,0.00013698,2]
[346462490,1734985847130,-641.53,0.00013698,2]
[346462491,1734985847140,-500.0,0.00013698,2]
[346462492,1734985847148,-500.0,0.00013698,2]
[346462493,1734985847162,-2535.38,0.00013698,2]
[346462494,1734985847171,-500.0,0.00013698,2]
[346462495,1734985847181,-559.44,0.00013698,2]
[346462496,1734985847191,-2844.22,0.00013698,2]
[346462497,1734985847201,-500.0,0.00013698,2]
[346462498,1734985847211,-1175.89,0.00013698,2]
[346462499,1734985847221,-659.94,0.00013698,2]
[346462500,1734985847231,-500.0,0.00013698,2]
[346462501,1734985847241,-175.65237267,0.00013698,2]
[346462502,1734985847252,-500.0,0.00013698,2]
[346462503,1734985847262,-500.0,0.00013698,2]
[346462504,1734985847273,-1425.63,0.00013698,2]
[346462505,1734985847283,-3167.53,0.00013698,2]
[346462506,1734985847293,-1269.21,0.00013698,2]
[346462507,1734985847303,-500.0,0.00013698,2]
[346462508,1734985847313,-500.0,0.00013698,2]
[346462509,1734985847323,-500.0,0.00013698,2]
[346462510,1734985847334,-3442.76,0.00013698,2]
[346462511,1734985847344,-500.0,0.00013698,2]
[346462512,1734985847354,-1385.92,0.00013698,2]
[346462513,1734985847364,-500.0,0.00013698,2]
[346462514,1734985847374,-3727.64,0.00013698,2]
[346462515,1734985847384,-500.0,0.00013698,2]
[346462516,1734985847393,-500.0,0.00013698,2]
[346462517,1734985847406,-500.0,0.00013698,2]
[346462518,1734985847416,-1459.47,0.00013698,2]
[346462519,1734985847426,-555.79,0.00013698,2]
[346462520,1734985847436,-533.73,0.00013698,2]
[346462521,1734985847446,-997.76,0.00013698,2]
[346462522,1734985847456,-502.54713006,0.00013698,2]
[346462523,1734985847466,-500.0,0.00013698,2]
[346462524,1734985847475,-8524.68,0.00013698,2]
[346462525,1734985847485,-1272.23,0.00013698,2]
[346462526,1734985847495,-2285.32,0.00013698,2]
[346462527,1734985847505,-500.0,0.00013698,2]
[346462528,1734985847515,-981.91,0.00013698,2]
[346462529,1734985847524,-2978.93,0.00013698,2]
[346462530,1734985847534,-500.0,0.00013698,2]
[346462531,1734985847544,-9546.61,0.00013698,2]
[346462532,1734985847554,-2228.43,0.00013698,2]
[346462533,1734985847564,-2084.77,0.00013698,2]
[346462534,1734985847574,-1275.35,0.00013698,2]
[346462535,1734985847584,-500.0,0.00013698,2]
[346462536,1734985847594,-701.29,0.00013698,2]
[346462537,1734985847605,-501.23492446,0.00013698,2]
[346462538,1734985847614,-500.0,0.00013698,2]
[346462539,1734985847624,-500.0,0.00013698,2]
[346462540,1734985847634,-8504.12,0.00013698,2]
[346462541,1734985847643,-2631.63,0.00013698,2]
[346462542,1734985847655,-5876.43,0.00013698,2]
[346462543,1734985847665,-500.0,0.00013698,2]
[346462544,1734985847675,-500.0,0.00013698,2]
[346462545,1734985847685,-500.0,0.00013698,2]
[346462546,1734985847695,-502.30394919,0.00013698,2]
[346462547,1734985847705,-500.0,0.00013698,2]
[346462548,1734985847715,-714.851638,0.00013698,2]
[346462549,1734985847725,-1269.09,0.00013698,2]
[346462550,1734985847735,-500.0,0.00013698,2]
[346462551,1734985847746,-500.0,0.00013698,2]
[346462552,1734985847756,-500.0,0.00013698,2]
[346462553,1734985847766,-1403.77,0.00013698,2]
[346462554,1734985847776,-6999.05,0.00013698,2]
[346462555,1734985847786,-896.477441,0.00013698,2]
[346462556,1734985847796,-567.05,0.00013698,2]
[346462557,1734985847806,-500.0,0.00013698,2]
[346462558,1734985847816,-500.0,0.00013698,2]
[346462559,1734985847826,-500.0,0.00013698,2]
[346462560,1734985847836,-978.25,0.00013698,2]
[346462561,1734985847846,-810.98,0.00013698,2]
[346462562,1734985847856,-878.42,0.00013698,2]
[346462563,1734985847949,-500.0,0.00013698,2]
[346462564,1734985847961,-500.0,0.00013698,2]
[346462565,1734985847971,-4971.32,0.00013698,2]
[346462566,1734985847980,-15609.61,0.00013698,2]
[346462567,1734985847990,-2082.07,0.00013698,2]
[346462568,1734985848000,-1810.82,0.00013698,2]
[346462569,1734985848010,-500.0,0.00013698,2]
[346462570,1734985848020,-544.40529518,0.00013698,2]
[346462571,1734985848030,-500.0,0.00013698,2]
[346462572,1734985848040,-500.0,0.00013698,2]
[346462573,1734985848050,-567.79,0.00013698,2]
[346462574,1734985848060,-544.09,0.00013698,2]
[346462575,1734985848069,-567.79,0.00013698,2]
[346462576,1734985848079,-567.79,0.00013698,2]
[346462577,1734985848090,-567.79,0.00013698,2]
[346462578,1734985848101,-500.0,0.00013698,2]
[346462579,1734985848110,-567.79,0.00013698,2]
[346462580,1734985848120,-500.0,0.00013698,2]
[346462581,1734985848129,-500.0,0.00013698,2]
[346462582,1734985848138,-2194.12,0.00013698,2]
[346462583,1734985848148,-21485.8,0.00013698,2]
[346462584,1734985848159,-537.09,0.00013698,2]
[346462585,1734985848168,-1307.78,0.00013698,2]
[346462586,1734985848178,-608.254172,0.00013698,2]
[346462587,1734985848187,-500.0,0.00013698,2]
[346462588,1734985848196,-500.0,0.00013698,2]
[346462589,1734985848205,-648.7,0.00013698,2]
[346462590,1734985848214,-500.0,0.00013698,2]
[346462591,1734985848224,-500.0,0.00013698,2]
[346462592,1734985848233,-830.494148,0.00013698,2]
[346462593,1734985848242,-500.0,0.00013698,2]
[346462594,1734985848252,-500.0,0.00013698,2]
[346462595,1734985848262,-500.0,0.00013698,2]
[346462596,1734985848272,-500.0,0.00013698,2]
[346462597,1734985848282,-792.62,0.00013698,2]
[346462598,1734985848291,-500.0,0.00013698,2]
[346462599,1734985848302,-500.0,0.00013698,2]
[346462600,1734985848312,-500.0,0.00013698,2]
[346462601,1734985848322,-695.34,0.00013698,2]
[346462602,1734985848331,-2306.63,0.00013698,2]
[346462603,1734985848341,-500.0,0.00013698,2]
[346462604,1734985848351,-1110.41,0.00013698,2]
[346462605,1734985848360,-1338.41,0.00013698,2]
[346462606,1734985848370,-2259.15,0.00013698,2]
[346462607,1734985848380,-501.76658601,0.00013698,2]
[346462608,1734985848390,-500.0,0.00013698,2]
[346462609,1734985848399,-2704.02,0.00013698,2]
[346462610,1734985848412,-500.0,0.00013698,2]
[346462611,1734985848421,-500.0,0.00013698,2]
[346462612,1734985848431,-8082.49,0.00013698,2]
[346462613,1734985848441,-500.0,0.00013698,2]
[346462614,1734985848451,-1130.4,0.00013698,2]
[346462615,1734985848462,-500.0,0.00013698,2]
[346462616,1734985848472,-500.0,0.00013698,2]
[346462617,1734985848482,-4959.77,0.00013698,2]
[346462618,1734985848492,-500.0,0.00013698,2]
[346462619,1734985848503,-736.657144,0.00013698,2]
[346462620,1734985848515,-505.532594,0.00013698,2]
[346462621,1734985848525,-957.86,0.00013698,2]
[346462622,1734985848536,-1409.87,0.00013698,2]
[346462623,1734985848546,-1185.79,0.00013698,2]
[346462624,1734985848556,-500.0,0.00013698,2]
[346462625,1734985848566,-909.88,0.00013698,2]
[346462626,1734985848576,-5418.44,0.00013698,2]
[346462627,1734985848586,-500.0,0.00013698,2]
[346462628,1734985848596,-500.0,0.00013698,2]
[346462629,1734985848606,-1045.5,0.00013698,2]
[346462630,1734985848617,-4556.54,0.00013698,2]
[346462631,1734985848626,-500.0,0.00013698,2]
[346462632,1734985848636,-881.96,0.00013698,2]
[346462633,1734985848646,-500.0,0.00013698,2]
[346462634,1734985848658,-500.0,0.00013698,2]
[346462635,1734985848667,-500.0,0.00013698,2]
[346462636,1734985848677,-500.0,0.00013698,2]
[346462637,1734985848687,-500.0,0.00013698,2]
[346462638,1734985848698,-25800.67,0.00013698,2]
[346462639,1734985848708,-500.0,0.00013698,2]
[346462640,1734985848719,-1968.17,0.00013698,2]
[346462641,1734985848729,-500.0,0.00013698,2]
[346462642,1734985848738,-500.0,0.00013698,2]
[346462643,1734985848747,-687.21,0.00013698,2]
[346462644,1734985848756,-500.0,0.00013698,2]
[346462645,1734985848764,-500.0,0.00013698,2]
[346462646,1734985848773,-3288.38,0.00013698,2]
[346462647,1734985848783,-500.0,0.00013698,2]
[346462648,1734985848793,-500.0,0.00013698,2]
[346462649,1734985848802,-416.862212,0.00013698,2]
[346462650,1734985848812,-1811.4,0.00013698,2]
[346462651,1734985848822,-1397.62,0.00013698,2]
[346462652,1734985848832,-500.0,0.00013698,2]
[346462653,1734985848841,-500.0,0.00013698,2]
[346462654,1734985848851,-1421.74,0.00013698,2]
[346462655,1734985848860,-638.509271,0.00013698,2]
[346462656,1734985848870,-500.0,0.00013698,2]
[346462657,1734985848879,-500.0,0.00013698,2]
[346462658,1734985848888,-1226.06,0.00013698,2]
[346462659,1734985848898,-500.0,0.00013698,2]
[346462660,1734985848911,-500.0,0.00013698,2]
[346462661,1734985848922,-503.81018042,0.00013698,2]
[346462662,1734985848932,-502.97732607,0.00013698,2]
[346462663,1734985848941,-500.0,0.00013698,2]
[346462664,1734985848951,-2054.5,0.00013698,2]
[346462665,1734985848960,-500.0,0.00013698,2]
[346462666,1734985848971,-1202.02,0.00013698,2]
[346462667,1734985848980,-500.0,0.00013698,2]
[346462668,1734985848990,-500.0,0.00013698,2]
[346462669,1734985848999,-857.55,0.00013698,2]
[346462670,1734985849009,-997.04,0.00013698,2]
[346462671,1734985849019,-500.0,0.00013698,2]
[346462672,1734985849028,-4568.68,0.00013698,2]
[346462673,1734985849038,-6837.63,0.00013698,2]
[346462674,1734985849048,-1006.94,0.00013698,2]
[346462675,1734985849058,-500.0,0.00013698,2]
[346462676,1734985849067,-500.0,0.00013698,2]
[346462677,1734985849077,-3003.94,0.00013698,2]
[346462678,1734985849086,-3000.0,0.00013698,2]
[346462679,1734985849097,-3832.76,0.00013698,2]
[346462680,1734985849107,-500.0,0.00013698,2]
[346462681,1734985849117,-500.0,0.00013698,2]
[346462682,1734985849127,-500.0,0.00013698,2]
[346462683,1734985849136,-1063.28,0.00013698,2]
[346462684,1734985849146,-500.0,0.00013698,2]
[346462685,1734985849158,-500.0,0.00013698,2]
[346462686,1734985849168,-500.0,0.00013698,2]
[346462687,1734985849178,-8648.19,0.00013698,2]
[346462688,1734985849187,-2507.56,0.00013698,2]
[346462689,1734985849198,-960.03,0.00013698,2]
[346462690,1734985849208,-500.0,0.00013698,2]
[346462691,1734985849217,-500.0,0.00013698,2]
[346462692,1734985849226,-5405.85,0.00013698,2]
[346462693,1734985849236,-1187.23,0.00013698,2]
[346462694,1734985849245,-2940.51,0.00013698,2]
[346462695,1734985849255,-1048.41,0.00013698,2]
[346462696,1734985849265,-1068.6,0.00013698,2]
[346462697,1734985849275,-840.39,0.00013698,2]
[346462698,1734985849285,-500.0,0.00013698,2]
[346462699,1734985849294,-500.0,0.00013698,2]
[346462700,1734985849303,-1993.74,0.00013698,2]
[346462701,1734985849312,-3561.12,0.00013698,2]
[346462702,1734985849322,-546.61,0.00013698,2]
[346462703,1734985849332,-500.0,0.00013698,2]
[346462704,1734985849342,-500.0,0.00013698,2]
[346462705,1734985849352,-3274.29,0.00013698,2]
[346462706,1734985849362,-1338.38,0.00013698,2]
[346462707,1734985849372,-783.78,0.00013698,2]
[346462708,1734985849382,-500.0,0.00013698,2]
[346462709,1734985849392,-500.0,0.00013698,2]
[346462710,1734985849401,-6361.67,0.00013698,2]
[346462711,1734985849414,-2499.95,0.00013698,2]
[346462712,1734985849423,-500.0,0.00013698,2]
[346462713,1734985849433,-500.0,0.00013698,2]
[346462714,1734985849442,-500.0,0.00013698,2]
[346462715,1734985849451,-1272.9,0.00013698,2]
[346462716,1734985849462,-584.79,0.00013698,2]
[346462717,1734985849472,-1264.02,0.00013698,2]
[346462718,1734985849482,-602.61,0.00013698,2]
[346462719,1734985849492,-502.15193499,0.00013698,2]
[346462720,1734985849502,-2583.28,0.00013698,2]
[346462721,1734985849511,-3548.89,0.00013698,2]
[346462722,1734985849521,-20926.66,0.00013698,2]
[346462723,1734985849531,-503.64170356,0.00013698,2]
[346462724,1734985849540,-1616.84,0.00013698,2]
[346462725,1734985849549,-500.0,0.00013698,2]
[346462726,1734985849559,-345.39155,0.00013698,2]
[346462727,1734985849569,-500.0,0.00013698,2]
[346462728,1734985849578,-5036.21,0.00013698,2]
[346462729,1734985849588,-500.0,0.00013698,2]
[346462730,1734985849598,-2477.09,0.00013698,2]
[346462731,1734985849607,-1308.35,0.00013698,2]
[346462732,1734985849617,-500.0,0.00013698,2]
[346462733,1734985849627,-3947.04,0.00013698,2]
[346462734,1734985849636,-500.0,0.00013698,2]
[346462735,1734985849646,-500.0,0.00013698,2]
[346462736,1734985849657,-1083.41,0.00013698,2]
[346462737,1734985849666,-1480.03,0.00013698,2]
[346462738,1734985849676,-2255.81,0.00013698,2]
[346462739,1734985849685,-500.0,0.00013698,2]
[346462740,1734985849695,-2607.12,0.00013698,2]
[346462741,1734985849704,-5040.82,0.00013698,2]
[346462742,1734985849714,-543.495431,0.00013698,2]
[346462743,1734985849724,-500.0,0.00013698,2]
[346462744,1734985849733,-1247.57,0.00013698,2]
[346462745,1734985849743,-500.0,0.00013698,2]
[346462746,1734985849752,-630.85,0.00013698,2]
[346462747,1734985849761,-513.84551566,0.00013698,2]
[346462748,1734985849771,-500.0,0.00013698,2]
[346462749,1734985849781,-500.0,0.00013698,2]
[346462750,1734985849791,-365.01224451,0.00013698,2]
[346462751,1734985849800,-2068.91,0.00013698,2]
[346462752,1734985849809,-1429.01,0.00013698,2]
[346462753,1734985849819,-1226.76,0.00013698,2]
[346462754,1734985849828,-2452.75,0.00013698,2]
[346462755,1734985849837,-1241.01,0.00013698,2]
[346462756,1734985849847,-506.4,0.00013698,2]
[346462757,1734985849856,-554.46,0.00013698,2]
[346462758,1734985849867,-18700.62,0.00013698,2]
[346462759,1734985849877,-501.17,0.00013698,2]
[346462760,1734985849886,-500.0,0.00013698,2]
[346462761,1734985849896,-3300.69,0.00013698,2]
[346462762,1734985849907,-350.820655,0.00013698,2]
[346462763,1734985849919,-500.0,0.00013698,2]
[346462764,1734985849931,-500.0,0.00013698,2]
[346462765,1734985849940,-6119.76,0.00013698,2]
[346462766,1734985849950,-500.0,0.00013698,2]
[346462767,1734985849959,-3913.42,0.00013698,2]
[346462768,1734985849970,-500.0,0.00013698,2]
[346462769,1734985849979,-500.0,0.00013698,2]
[346462770,1734985849988,-490.379018,0.00013698,2]
[346462771,1734985849999,-1567.98,0.00013698,2]
[346462772,1734985850009,-6444.03,0.00013698,2]
[346462773,1734985850018,-1453.39,0.00013698,2]
[346462774,1734985850027,-500.0,0.00013698,2]
[346462775,1734985850036,-500.0,0.00013698,2]
[346462776,1734985850045,-500.0,0.00013698,2]
[346462777,1734985850055,-3959.58,0.00013698,2]
[346462778,1734985850064,-500.0,0.00013698,2]
[346462779,1734985850073,-1456.46,0.00013698,2]
[346462780,1734985850083,-1603.61,0.00013698,2]
[346462781,1734985850092,-4147.05,0.00013698,2]
[346462782,1734985850101,-1305.37,0.00013698,2]
[346462783,1734985850110,-649.54,0.00013698,2]
[346462784,1734985850120,-3798.82,0.00013698,2]
[346462785,1734985850129,-500.0,0.00013698,2]
[346462786,1734985850142,-514.33,0.00013698,2]
[346462787,1734985850151,-3993.59,0.00013698,2]
[346462788,1734985850167,-3821.57,0.00013698,2]
[346462789,1734985850176,-500.0,0.00013698,2]
[346462790,1734985850186,-495.70178101,0.00013698,2]
[346462791,1734985850195,-1842.07,0.00013698,2]
[346462792,1734985850205,-1272.09,0.00013698,2]
[346462793,1734985850215,-500.0,0.00013698,2]
[346462794,1734985850224,-4205.8,0.00013698,2]
[346462795,1734985850233,-500.0,0.00013698,2]
[346462796,1734985850242,-9580.74,0.00013698,2]
[346462797,1734985850252,-500.0,0.00013698,2]
[346462798,1734985850261,-452.76781,0.00013698,2]
[346462799,1734985850271,-990.12,0.00013698,2]
[346462800,1734985850280,-3273.83,0.00013698,2]
[346462801,1734985850290,-500.0,0.00013698,2]
[346462802,1734985850299,-3939.69,0.00013698,2]
[346462803,1734985850308,-500.0,0.00013698,2]
[346462804,1734985850317,-6970.0,0.00013698,2]
[346462805,1734985850326,-513.29459,0.00013698,2]
[346462806,1734985850335,-200.09894107,0.00013698,2]
[346462807,1734985850345,-500.0,0.00013698,2]
[346462808,1734985850355,-5297.22,0.00013698,2]
[346462809,1734985850365,-507.24,0.00013698,2]
[346462810,1734985850374,-500.0,0.00013698,2]
[346462811,1734985850384,-3419.02,0.00013698,2]
[346462812,1734985850393,-2342.86,0.00013698,2]
[346462813,1734985850403,-3781.54,0.00013698,2]
[346462814,1734985850414,-4406.32,0.00013698,2]
[346462815,1734985850423,-880.11,0.00013698,2]
[346462816,1734985850432,-500.0,0.00013698,2]
[346462817,1734985850442,-500.0,0.00013698,2]
[346462818,1734985850452,-500.0,0.00013698,2]
[346462819,1734985850461,-1687.17,0.00013698,2]
[346462820,1734985850471,-500.0,0.00013698,2]
[346462821,1734985850481,-500.0,0.00013698,2]
[346462822,1734985850490,-500.0,0.00013698,2]
[346462823,1734985850499,-500.0,0.00013698,2]
[346462824,1734985850509,-7467.93,0.00013698,2]
[346462825,1734985850518,-500.0,0.00013698,2]
[346462826,1734985850527,-500.0,0.00013698,2]
[346462827,1734985850537,-1563.38,0.00013698,2]
[346462828,1734985850546,-560.36,0.00013698,2]
[346462829,1734985850556,-500.0,0.00013698,2]
[346462830,1734985850565,-2438.69,0.00013698,2]
[346462831,1734985850574,-3631.24,0.00013698,2]
[346462832,1734985850583,-7242.71,0.00013698,2]
[346462833,1734985850592,-500.0,0.00013698,2]
[346462834,1734985850601,-1012.15,0.00013698,2]
[346462835,1734985850610,-500.0,0.00013698,2]
[346462836,1734985850620,-870.81,0.00013698,2]
[346462837,1734985850630,-589.510352,0.00013698,2]
[346462838,1734985850640,-1706.03,0.00013698,2]
[346462839,1734985850650,-36069.68,0.00013698,2]
[346462840,1734985850662,-1841.67,0.00013698,2]
[346462841,1734985850672,-728.54,0.00013698,2]
[346462842,1734985850682,-8369.58,0.00013698,2]
[346462843,1734985850691,-1042.2,0.00013698,2]
[346462844,1734985850701,-500.0,0.00013698,2]
[346462845,1734985850710,-1791.62,0.00013698,2]
[346462846,1734985850720,-7200.05,0.00013698,2]
[346462847,1734985850730,-4088.12,0.00013698,2]
[346462848,1734985850739,-500.0,0.00013698,2]
[346462849,1734985850749,-599.323748,0.00013698,2]
[346462850,1734985850758,-502.1193411,0.00013698,2]
[346462851,1734985850768,-500.0,0.00013698,2]
[346462852,1734985850777,-500.0,0.00013698,2]
[346462853,1734985850787,-500.0,0.00013698,2]
[346462854,1734985850796,-500.0,0.00013698,2]
[346462855,1734985850806,-500.0,0.00013698,2]
[346462856,1734985850816,-500.0,0.00013698,2]
[346462857,1734985850825,-5502.42,0.00013698,2]
[346462858,1734985850835,-1638.56,0.00013698,2]
[346462859,1734985850844,-1655.23,0.00013698,2]
[346462860,1734985850854,-4525.56,0.00013698,2]
[346462861,1734985850863,-3696.68,0.00013698,2]
[346462862,1734985850873,-6365.37,0.00013698,2]
[346462863,1734985850883,-1166.09,0.00013698,2]
[346462864,1734985850892,-500.0,0.00013698,2]
[346462865,1734985850902,-500.0,0.00013698,2]
[346462866,1734985850913,-2529.79,0.00013698,2]
[346462867,1734985850924,-500.0,0.00013698,2]
[346462868,1734985850934,-5007.05,0.00013698,2]
[346462869,1734985850943,-553.26,0.00013698,2]
[346462870,1734985850953,-4684.79,0.00013698,2]
[346462871,1734985850962,-734.61,0.00013698,2]
[346462872,1734985850973,-500.0,0.00013698,2]
[346462873,1734985850983,-500.0,0.00013698,2]
[346462874,1734985850993,-694.347267,0.00013698,2]
[346462875,1734985851004,-500.0,0.00013698,2]
[346462876,1734985851015,-1179.54,0.00013698,2]